bitfinex-derivatives/quotes_BTCF0:USTF0_20250127
["timestamp","ask_amount","ask_price","bid_price","bid_amount"]
[1737980837105,0.3608,99187.0,99183.0,0.36931501]
[1737980837500,0.3608,99187.0,99184.0,1.5]
[1737980837905,0.002,99198.0,99184.0,1.5]
[1737980838103,0.002,99198.0,99189.0,0.09758145]
[1737980838506,0.3608,99199.0,99195.0,0.201732]
[1737980838810,0.3608,99207.0,99189.0,0.09758145]
[1737980839006,0.3608,99207.0,99196.0,0.201729]
[1737980839310,0.002,99198.0,99197.0,0.182]
[1737980840013,0.002,99198.0,99197.0,0.383729]
[1737980840605,0.002,99198.0,99197.0,0.384729]
[1737980841104,0.3608,99207.0,99197.0,0.183]
[1737980841305,0.3608,99207.0,99204.0,0.201715]
[1737980841512,0.3608,99215.0,99204.0,0.201715]
[1737980844516,0.3608,99215.0,99214.0,0.201694]
[1737980845019,0.3608,99215.0,99214.0,1.701694]
[1737980845410,0.3608,99215.0,99214.0,1.5]
[1737980845622,0.3608,99215.0,99205.0,0.09758145]
[1737980846012,0.3608,99215.0,99206.0,1.5]
[1737980846312,0.3608,99215.0,99205.0,0.09758145]
[1737980846519,0.3608,99207.0,99205.0,0.09758145]
[1737980846820,0.3608,99215.0,99205.0,1.701712]
[1737980847115,0.3608,99215.0,99206.0,0.20171]
[1737980847517,0.3608,99215.0,99207.0,0.1724]
[1737980847818,0.3608,99215.0,99207.0,0.3467]
[1737980848018,0.3608,99215.0,99207.0,0.548407]
[1737980848221,0.3608,99215.0,99211.0,0.201699]
[1737980848623,0.3608,99215.0,99214.0,0.201694]
[1737980848808,0.00015124,99224.0,99214.0,0.3608]
[1737980849012,0.00015124,99224.0,99214.0,0.45838145]
[1737980849220,0.00015124,99224.0,99223.0,0.3608]
[1737980850018,0.00015124,99224.0,99223.0,0.562476]
[1737980850213,0.00015124,99224.0,99223.0,0.3608]
[1737980852021,0.00015124,99224.0,99223.0,0.562476]
[1737980852515,0.00015124,99224.0,99223.0,0.3608]
[1737980852921,0.00015124,99224.0,99223.0,0.3638]
[1737980853322,0.00015124,99224.0,99223.0,0.565476]
[1737980853526,0.00015124,99224.0,99223.0,0.57673445]
[1737980857415,0.00015124,99224.0,99223.0,0.01425845]
[1737980857620,0.20182524,99224.0,99223.0,0.01425845]
[1737980858013,0.00015124,99224.0,99223.0,0.01425845]
[1737980858925,0.00015124,99224.0,99223.0,0.01125845]
[1737980859127,0.00215124,99224.0,99221.0,0.1848]
[1737980859614,0.00015124,99224.0,99223.0,0.002]
[1737980860221,0.00015124,99224.0,99221.0,0.19696295]
[1737980860621,0.00015124,99224.0,99221.0,0.01216295]
[1737980861230,0.3608,99222.0,99221.0,0.01216295]
[1737980861423,0.3608,99222.0,99214.0,0.00015124]
[1737980861424,0.201692,99215.0,99214.0,0.00015124]
[1737980861924,0.10600668,99215.0,99214.0,0.00015124]
[1737980862122,0.10600668,99215.0,99214.0,0.01118392]
[1737980862323,0.10705447,99218.0,99214.0,0.00015124]
[1737980863030,0.10705447,99219.0,99214.0,0.00015124]
[1737980863216,0.10705447,99220.0,99214.0,0.00015124]
[1737980863422,0.1796,99221.0,99214.0,0.00015124]
[1737980863830,0.001,99218.0,99214.0,0.00015124]
[1737980864031,0.001,99218.0,99214.0,0.57364634]
[1737980864229,0.001,99218.0,99216.0,0.20169]
[1737980864932,0.001,99218.0,99215.0,0.3646]
[1737980865331,0.201663,99230.0,99215.0,0.3646]
[1737980865630,0.002,99220.0,99215.0,0.3646]
[1737980866023,0.1769,99239.0,99216.0,0.3608]
[1737980866225,0.201658,99232.0,99216.0,0.3608]
[1737980866620,0.201672,99225.0,99216.0,0.3608]
[1737980866820,0.20182524,99224.0,99216.0,0.3608]
[1737980867026,0.31061968,99223.0,99216.0,0.3608]
[1737980867222,0.10894268,99223.0,99216.0,0.3608]
[1737980867423,0.201679,99222.0,99214.0,0.01115234]
[1737980867619,0.201682,99221.0,99214.0,0.01115234]
[1737980867834,0.10703456,99221.0,99214.0,0.01115234]
[1737980868221,0.201688,99218.0,99214.0,0.01115234]
[1737980868425,0.1785,99217.0,99214.0,0.01115234]
[1737980868620,0.562492,99215.0,99214.0,0.01115234]
[1737980869034,0.562492,99215.0,99214.0,0.01215234]
[1737980869736,0.562492,99215.0,99214.0,0.01115234]
[1737980870033,0.562492,99215.0,99214.0,0.01315234]
[1737980872031,0.562492,99215.0,99214.0,0.01115234]
[1737980872234,0.562492,99215.0,99214.0,0.00015124]
[1737980872633,0.46901486,99215.0,99194.0,0.1734]
[1737980872829,0.3608,99206.0,99194.0,0.1734]
[1737980873033,0.3608,99206.0,99195.0,1.5]
[1737980873235,0.201733,99195.0,99194.0,0.00872852]
[1737980873431,0.201742,99191.0,99174.0,0.1765]
[1737980873629,0.3608,99189.0,99179.0,1.5]
[1737980874137,0.10714655,99188.0,99179.0,1.5]
[1737980874438,0.10714655,99188.0,99178.0,0.01015238]
[1737980874439,0.3608,99181.0,99178.0,0.01015238]
[1737980874639,0.201766,99179.0,99178.0,0.01015238]
[1737980874839,0.3608,99181.0,99178.0,0.01015238]
[1737980875638,0.201764,99180.0,99178.0,0.01915238]
[1737980876030,0.201764,99180.0,99178.0,0.01215238]
[1737980876230,0.201764,99180.0,99178.0,0.01415238]
[1737980876430,0.3608,99181.0,99178.0,0.01415238]
[1737980876842,0.3608,99181.0,99178.0,0.01215238]
[1737980878835,0.3608,99181.0,99178.0,0.01015238]
[1737980879031,0.3608,99181.0,99178.0,0.01215238]
[1737980881641,0.201766,99179.0,99178.0,0.01215238]
[1737980882135,0.31870001,99179.0,99178.0,0.01215238]
[1737980885337,0.11693401,99179.0,99178.0,0.01215238]
[1737980885646,0.201766,99179.0,99178.0,0.01215238]
[1737980885946,0.201766,99179.0,99178.0,0.00351217]
[1737980886247,0.30867024,99179.0,99178.0,0.00351217]
[1737980886847,0.66947024,99179.0,99178.0,0.00351217]
[1737980887254,0.46770424,99179.0,99175.0,0.00015124]
[1737980887547,0.201802,99161.0,99145.0,0.1723]
[1737980887845,0.3608,99157.0,99145.0,0.1723]
[1737980888149,0.56261,99157.0,99156.0,0.18847833]
[1737980888736,0.56261,99157.0,99156.0,0.19647833]
[1737980889144,0.56261,99157.0,99156.0,0.01697833]
[1737980889345,0.67157681,99157.0,99156.0,0.00897833]
[1737980889545,0.67257681,99157.0,99156.0,0.009]
[1737980889744,0.67257681,99157.0,99156.0,0.012]
[1737980891154,0.67257681,99157.0,99156.0,0.011]
[1737980893154,0.47076681,99157.0,99147.0,0.0090845]
[1737980893454,0.562629,99148.0,99147.0,0.0090845]
[1737980893859,0.66941449,99148.0,99147.0,0.0090845]
[1737980894454,0.66941449,99148.0,99147.0,0.0120845]
[1737980894858,0.67041449,99148.0,99147.0,0.0150845]
[1737980896155,0.67041449,99148.0,99147.0,0.00615124]
[1737980896655,0.67041449,99148.0,99147.0,0.00715124]
[1737980902262,0.46858549,99148.0,99147.0,0.00715124]
[1737980903062,0.67041449,99148.0,99147.0,0.00715124]
[1737980904054,0.201863,99131.0,99130.0,0.00151293]
[1737980904256,0.562663,99131.0,99130.0,0.00151293]
[1737980904455,0.562663,99131.0,99118.0,0.5401]
[1737980904456,0.201868,99129.0,99118.0,0.5401]
[1737980904759,0.3608,99122.0,99118.0,0.5401]
[1737980905158,0.10842921,99121.0,99118.0,0.55126643]
[1737980905553,0.10842921,99121.0,99118.0,0.55326643]
[1737980905959,0.10842921,99121.0,99118.0,0.55626643]
[1737980908365,0.10942921,99121.0,99118.0,0.55626643]
[1737980915672,0.201888,99119.0,99118.0,0.55626643]
[1737980916175,0.30747759,99119.0,99118.0,0.55626643]
[1737980917671,0.30847759,99119.0,99118.0,0.55726643]
[1737980919272,0.10658959,99119.0,99118.0,0.55726643]
[1737980919974,0.30847759,99119.0,99118.0,0.55726643]
[1737980920774,0.10658959,99119.0,99118.0,0.55726643]
[1737980921278,0.001,99119.0,99118.0,0.55726643]
[1737980927589,0.001,99119.0,99118.0,0.19506643]
[1737980927796,0.11154195,99119.0,99118.0,0.19506643]
[1737980931296,0.67422995,99119.0,99118.0,0.19506643]
[1737980931683,0.67422995,99119.0,99118.0,0.01716643]
[1737980931887,0.47234195,99119.0,99118.0,0.01716643]
[1737980932497,0.47234195,99119.0,99118.0,0.01616643]
[1737980937397,0.67422995,99119.0,99118.0,0.01616643]
[1737980937597,0.47234195,99119.0,99118.0,0.01616643]
[1737980939003,0.67422995,99119.0,99118.0,0.01616643]
[1737980939397,0.47234195,99119.0,99110.0,0.00015132]
[1737980939600,0.3608,99111.0,99077.0,0.3608]
[1737980939804,0.923537,99095.0,99089.0,0.01077199]
[1737980939997,0.201959,99085.0,99075.0,0.178]
[1737980940198,0.3608,99080.0,99075.0,0.178]
[1737980940703,0.11654128,99079.0,99068.0,0.00015139]
[1737980940909,0.20199,99069.0,99068.0,0.00015139]
[1737980941409,0.202002,99063.0,99062.0,0.18004241]
[1737980941899,0.202002,99063.0,99052.0,0.00151413]
[1737980941900,0.1132694,99063.0,99052.0,0.00151413]
[1737980942102,0.202022,99053.0,99052.0,0.00151413]
[1737980942300,0.562822,99053.0,99052.0,0.00151413]
[1737980942501,0.6760914,99053.0,99052.0,0.00151413]
[1737980943310,0.6760914,99053.0,99037.0,0.1669]
[1737980943508,0.4740694,99053.0,99046.0,0.01099573]
[1737980945205,0.6760924,99053.0,99037.0,0.1669]
[1737980946011,0.3608,99043.0,99037.0,0.1669]
[1737980946513,0.10918126,99042.0,99037.0,0.1669]
[1737980947208,0.10918126,99042.0,99037.0,0.17753159]
[1737980948101,0.31222626,99042.0,99038.0,1.5]
[1737980948303,0.202049,99040.0,99037.0,0.17853159]
[1737980948505,0.202049,99040.0,99037.0,0.01163159]
[1737980948506,0.202051,99039.0,99037.0,0.01163159]
[1737980948706,0.202054,99038.0,99016.0,0.3564]
[1737980948904,0.3608,99029.0,99022.0,0.18982285]
[1737980949314,0.202079,99025.0,99022.0,0.18982285]
[1737980949500,0.202083,99024.0,99022.0,0.01112285]
[1737980949706,0.11018547,99024.0,99016.0,0.3564]
[1737980949905,0.3608,99021.0,99016.0,0.3564]
[1737980950221,0.11018547,99020.0,99016.0,0.3564]
[1737980951211,0.001,99024.0,99016.0,0.36732395]
[1737980951514,0.3608,99039.0,99023.0,0.3608]
[1737980951708,0.212236,99040.0,99029.0,0.09758145]
[1737980951915,0.10530656,99038.0,99029.0,0.09758145]
[1737980952115,0.10530656,99039.0,99030.0,1.5]
[1737980952308,0.212236,99040.0,99034.0,0.3608]
[1737980952508,0.212236,99040.0,99035.0,0.1808]
[1737980953016,0.24238241,99048.0,99035.0,0.1808]
[1737980953313,0.001,99038.0,99037.0,0.202055]
[1737980953511,0.10566442,99047.0,99041.0,0.202046]
[1737980953718,0.10566442,99047.0,99037.0,0.3608]
[1737980953719,0.30294802,99055.0,99046.0,0.3608]
[1737980953911,0.30294802,99055.0,99054.0,0.3608]
[1737980955415,0.30394802,99055.0,99054.0,0.3608]
[1737980956220,0.30494802,99055.0,99054.0,0.3608]
[1737980956613,0.30394802,99055.0,99054.0,0.3608]
[1737980960317,0.30494802,99055.0,99054.0,0.3608]
[1737980960519,0.30394802,99055.0,99054.0,0.3608]
[1737980960913,0.2801569,99055.0,99054.0,1.8608]
[1737980961115,0.00015148,99060.0,99054.0,1.8608]
[1737980961419,0.00015148,99060.0,99058.0,0.20201]
[1737980961716,0.00015148,99060.0,99059.0,0.1699]
[1737980963619,0.201983,99073.0,99059.0,0.1719]
[1737980963820,0.20197,99079.0,99071.0,0.3608]
[1737980964024,0.43099861,99091.0,99071.0,0.3608]
[1737980964318,0.201952,99088.0,99072.0,0.3406]
[1737980964512,0.27261041,99079.0,99072.0,0.3406]
[1737980965212,0.002,99077.0,99072.0,0.3406]
[1737980966518,0.002,99077.0,99073.0,1.5]
[1737980966720,0.005,99077.0,99073.0,1.5]
[1737980967322,0.001,99077.0,99072.0,0.3406]
[1737980968021,0.002,99077.0,99073.0,1.5]
[1737980968723,0.003,99077.0,99075.0,0.00019249]
[1737980970121,0.001,99077.0,99075.0,0.00019249]
[1737980970427,0.201975,99076.0,99075.0,0.00019249]
[1737980970619,0.31719958,99076.0,99075.0,0.00019249]
[1737980971715,0.31819958,99076.0,99075.0,0.00019249]
[1737980971916,0.11622458,99076.0,99075.0,0.00019249]
[1737980973426,0.11822458,99076.0,99075.0,0.00019249]
[1737980973720,0.11922458,99076.0,99075.0,0.00019249]
[1737980974626,0.11722458,99076.0,99075.0,0.00019249]
[1737980974920,0.11922458,99076.0,99075.0,0.00019249]
[1737980975426,0.11722458,99076.0,99075.0,0.00019249]
[1737980975627,0.11922458,99076.0,99075.0,0.00019249]
[1737980975922,0.32119958,99076.0,99075.0,0.00019249]
[1737980976126,0.11922458,99076.0,99075.0,0.00019249]
[1737980978628,0.11922458,99076.0,99075.0,1.50019249]
[1737980978929,0.32119958,99076.0,99075.0,0.00019249]
[1737980979136,0.11922458,99076.0,99075.0,0.00019249]
[1737980979821,0.11722458,99076.0,99075.0,0.00019249]
[1737980980126,0.11922458,99076.0,99075.0,0.00019249]
[1737980980731,0.11722458,99076.0,99075.0,0.00019249]
[1737980980929,0.11922458,99076.0,99075.0,0.00019249]
[1737980981724,0.11722458,99076.0,99075.0,0.00019249]
[1737980981928,0.11922458,99076.0,99075.0,0.00019249]
[1737980982330,0.48002458,99076.0,99075.0,0.00019249]
[1737980982730,0.47802458,99076.0,99075.0,0.00019249]
[1737980983030,0.48002458,99076.0,99075.0,0.00019249]
[1737980984233,0.47802458,99076.0,99075.0,0.00019249]
[1737980984434,0.48002458,99076.0,99075.0,0.00019249]
[1737980985025,0.47802458,99076.0,99075.0,0.00019249]
[1737980985225,0.48002458,99076.0,99075.0,0.00019249]
[1737980986537,0.47802458,99076.0,99075.0,0.00019249]
[1737980986833,0.48002458,99076.0,99075.0,0.00019249]
[1737980987027,0.004,99076.0,99075.0,0.20216949]
[1737980987225,0.002,99076.0,99075.0,0.36099249]
[1737980987427,0.178,99117.0,99089.0,0.050486]
[1737980987634,0.178,99117.0,99107.0,0.09758145]
[1737980987825,0.28805913,99117.0,99107.0,0.09758145]
[1737980988032,0.19863688,99121.0,99116.0,0.3608]
[1737980988231,0.17663687,99121.0,99120.0,0.201866]
[1737980988533,0.00011139,99128.0,99119.0,0.3608]
[1737980988735,0.3608,99168.0,99131.0,0.05046]
[1737980988934,0.10748693,99157.0,99156.0,0.45838145]
[1737980989134,0.10748693,99165.0,99156.0,0.3608]
[1737980989337,0.05178211,99167.0,99164.0,0.3608]
[1737980989642,0.05178211,99167.0,99156.0,0.3608]
[1737980989834,0.05178211,99167.0,99165.0,0.3608]
[1737980990140,0.12555183,99166.0,99156.0,0.01335598]
[1737980990353,0.201785,99160.0,99152.0,0.00015131]
[1737980990637,0.201788,99159.0,99152.0,0.00015131]
[1737980990835,0.10676436,99159.0,99152.0,0.00015131]
[1737980991137,0.3608,99159.0,99152.0,0.00015131]
[1737980991535,0.10676436,99158.0,99152.0,0.00015131]
[1737980993139,0.11076436,99158.0,99152.0,0.00015131]
[1737980993339,0.11276436,99158.0,99152.0,0.00015131]
[1737980993740,0.006,99158.0,99152.0,0.00015131]
[1737980994337,0.006,99158.0,99155.0,0.201794]
[1737980994536,0.006,99158.0,99156.0,0.3608]
[1737980994837,0.006,99158.0,99156.0,0.562592]
[1737980995540,0.002,99158.0,99157.0,0.20179]
[1737980995747,0.1,99200.0,99156.0,0.3608]
[1737980995946,0.004,99158.0,99157.0,0.252237]
[1737980996243,0.11311154,99198.0,99167.0,0.050442]
[1737980996439,0.1,99200.0,99197.0,0.3608]
[1737980996946,0.009,99199.0,99197.0,0.3608]
[1737980997948,0.009,99199.0,99198.0,1.5]
[1737980998247,0.1162857,99198.0,99189.0,0.00015123]
[1737980998641,0.009,99199.0,99189.0,0.00015123]
[1737980998843,0.106,99200.0,99197.0,0.001]
[1737980999148,0.10875112,99198.0,99197.0,0.001]
[1737980999350,0.31245712,99199.0,99197.0,0.001]
[1737980999646,0.31245712,99199.0,99189.0,0.01373304]
[1737980999647,0.005,99198.0,99189.0,0.01373304]
[1737980999853,0.11251788,99198.0,99189.0,0.01373304]
[1737981000141,0.10751788,99198.0,99197.0,0.001]
[1737981000547,0.201723,99190.0,99189.0,0.00015123]
[1737981000744,0.201723,99190.0,99161.0,0.3608]
[1737981000745,0.201758,99174.0,99161.0,0.3608]
[1737981001048,0.47050693,99173.0,99153.0,0.0006]
[1737981001240,0.201767,99169.0,99153.0,0.01342667]
[1737981001440,0.201767,99169.0,99150.0,0.45838145]
[1737981001647,0.3608,99164.0,99150.0,0.45838145]
[1737981001835,0.10970693,99168.0,99150.0,0.45838145]
[1737981002035,0.11667084,99163.0,99150.0,0.45853268]
[1737981002544,0.11667084,99168.0,99150.0,0.45853268]
[1737981002845,0.1160367,99162.0,99150.0,0.37439127]
[1737981003154,0.3608,99157.0,99150.0,0.01359127]
[1737981003342,0.3608,99157.0,99150.0,0.00015123]
[1737981003343,0.201802,99152.0,99150.0,0.00015123]
[1737981003860,0.1160367,99151.0,99150.0,0.00015123]
[1737981004541,0.11572379,99153.0,99150.0,0.00015123]
[1737981004846,0.2018,99153.0,99150.0,0.00015123]
[1737981005046,0.31342803,99153.0,99150.0,0.00015123]
[1737981005751,0.201801,99152.0,99150.0,0.00115123]
[1737981006150,0.10798772,99151.0,99150.0,0.00015123]
[1737981006350,0.10798772,99151.0,99150.0,0.00315123]
[1737981006653,0.10798772,99151.0,99137.0,0.36231276]
[1737981006654,0.201829,99138.0,99137.0,0.00151276]
[1737981006949,0.3608,99141.0,99137.0,0.0151248]
[1737981007147,0.1169724,99138.0,99137.0,0.00151276]
[1737981007539,0.1169724,99144.0,99137.0,0.00151276]
[1737981007740,0.003,99152.0,99138.0,1.8608]
[1737981007935,0.09773268,99150.0,99138.0,1.8608]
[1737981008146,0.3608,99145.0,99137.0,0.00151276]
[1737981008349,0.1811,99144.0,99137.0,0.00151276]
[1737981008541,0.28629671,99144.0,99137.0,0.00151276]
[1737981008945,0.28629671,99144.0,99137.0,0.00351276]
[1737981009347,0.201829,99138.0,99137.0,0.01716093]
[1737981009541,0.28729671,99144.0,99137.0,0.00351276]
[1737981009742,0.11264472,99138.0,99137.0,0.00151276]
[1737981010349,0.201828,99139.0,99137.0,0.00151276]
[1737981010547,0.10877037,99138.0,99137.0,0.00151276]
[1737981010947,0.10877037,99138.0,99137.0,0.01563904]
[1737981011146,0.10877037,99138.0,99137.0,0.00251276]
[1737981011742,0.11224425,99142.0,99137.0,0.00251276]
[1737981012157,0.11224425,99142.0,99137.0,0.01576617]
[1737981012454,0.11224425,99142.0,99137.0,0.00251276]
[1737981013156,0.201829,99138.0,99137.0,0.00151276]
[1737981013452,0.358,99143.0,99137.0,0.00151276]
[1737981013656,0.11670623,99138.0,99137.0,0.00151276]
[1737981013950,0.201829,99138.0,99137.0,0.00151276]
[1737981014454,0.31719581,99138.0,99137.0,0.00151276]
[1737981016251,0.31719581,99138.0,99137.0,0.00351276]
[1737981017158,0.11536681,99138.0,99137.0,0.00351276]
[1737981017549,0.201829,99138.0,99137.0,0.00351276]
[1737981017856,0.30934775,99138.0,99137.0,0.00351276]
[1737981018258,0.67014775,99138.0,99137.0,0.00351276]
[1737981018553,0.201863,99122.0,99110.0,0.3608]
[1737981018955,0.1117414,99121.0,99110.0,0.37433777]
[1737981019652,0.1117414,99123.0,99110.0,0.47191922]
[1737981019858,0.00015133,99125.0,99110.0,0.47191922]
[1737981020057,0.11391957,99124.0,99110.0,0.47191922]
[1737981020255,0.00015133,99125.0,99110.0,0.47191922]
[1737981020754,0.001,99122.0,99110.0,0.47891922]
[1737981021156,0.11391957,99124.0,99110.0,0.47191922]
[1737981021360,0.3608,99137.0,99123.0,0.3608]
[1737981021553,0.1212,99145.0,99127.0,0.09758145]
[1737981021749,0.11706559,99136.0,99128.0,0.3566]
[1737981021955,0.11118403,99141.0,99129.0,1.5]
[1737981022155,0.09758145,99150.0,99133.0,0.3608]
[1737981022452,0.11118403,99140.0,99133.0,0.3608]
[1737981022760,0.001,99144.0,99133.0,0.3608]
[1737981022952,0.001,99144.0,99141.0,0.3608]
[1737981023161,0.001,99144.0,99142.0,0.20182]
[1737981023459,0.001,99144.0,99141.0,0.3608]
[1737981023861,0.11677872,99143.0,99133.0,0.3608]
[1737981024764,0.11677872,99143.0,99141.0,0.002]
[1737981024958,0.10893741,99147.0,99141.0,0.002]
[1737981025165,0.00015133,99148.0,99141.0,0.002]
[1737981025665,0.10893741,99147.0,99141.0,0.002]
[1737981026366,0.10893741,99147.0,99133.0,0.3608]
[1737981027063,0.10993741,99147.0,99133.0,0.3608]
[1737981027466,0.10893741,99147.0,99133.0,0.3608]
[1737981027662,0.10993741,99147.0,99141.0,0.3608]
[1737981028359,0.11093741,99147.0,99141.0,0.3608]
[1737981029054,0.201835,99135.0,99133.0,0.37338408]
[1737981029362,0.201828,99139.0,99133.0,0.37338408]
[1737981029668,0.201832,99137.0,99133.0,0.37338408]
[1737981029968,0.562621,99142.0,99133.0,0.37338408]
[1737981030261,0.11434343,99136.0,99133.0,0.37338408]
[1737981030462,0.11434343,99137.0,99133.0,0.37338408]
[1737981030765,0.31617243,99138.0,99133.0,0.37438408]
[1737981030963,0.10923549,99136.0,99133.0,0.37438408]
[1737981031267,0.201834,99136.0,99133.0,0.37338408]
[1737981031563,0.1705,99141.0,99129.0,0.00015133]
[1737981031564,0.3608,99134.0,99129.0,0.00015133]
[1737981032155,0.11311394,99133.0,99129.0,0.00015133]
[1737981032570,0.47391394,99134.0,99129.0,0.01275959]
[1737981032764,0.201845,99130.0,99129.0,0.00015133]
[1737981033270,0.31787089,99130.0,99129.0,0.00115133]
[1737981033461,0.31787089,99130.0,99129.0,0.00415133]
[1737981034272,0.11602589,99130.0,99129.0,0.00515133]
[1737981034692,0.11552696,99132.0,99129.0,0.00515133]
[1737981034971,0.20184,99133.0,99129.0,0.00515133]
[1737981035272,0.10654857,99132.0,99129.0,0.00515133]
[1737981035866,0.201845,99130.0,99129.0,0.00515133]
[1737981036066,0.201845,99130.0,99129.0,0.00115133]
[1737981036363,0.30798617,99130.0,99129.0,0.00415133]
[1737981036768,0.30798617,99130.0,99129.0,0.00515133]
[1737981037775,0.10614117,99130.0,99129.0,0.00515133]
[1737981038071,0.56323801,99134.0,99129.0,0.00515133]
[1737981038269,0.31603558,99133.0,99129.0,0.00515133]
[1737981038470,0.201841,99133.0,99129.0,0.00515133]
[1737981038672,0.11419458,99132.0,99129.0,0.00515133]
[1737981039273,0.31603558,99132.0,99129.0,0.00515133]
[1737981039473,0.31603558,99132.0,99129.0,0.00415133]
[1737981039668,0.201841,99132.0,99129.0,0.00415133]
[1737981039863,0.11408397,99131.0,99129.0,0.00415133]
[1737981040070,0.11408397,99131.0,99129.0,0.00515133]
[1737981040671,0.201845,99130.0,99129.0,0.00515133]
[1737981040970,0.31399959,99130.0,99129.0,0.00415133]
[1737981041173,0.31399959,99130.0,99129.0,0.00115133]
[1737981041475,0.31399959,99130.0,99129.0,0.00515133]
[1737981045384,0.11215459,99130.0,99129.0,0.00515133]
[1737981045674,0.3608,99134.0,99129.0,0.00515133]
[1737981045871,0.11394132,99133.0,99129.0,0.00515133]
[1737981046075,0.3608,99134.0,99129.0,0.00515133]
[1737981046281,0.10886394,99133.0,99129.0,0.00515133]
[1737981046673,0.201845,99130.0,99129.0,0.00515133]
[1737981046877,0.10886394,99133.0,99129.0,0.00115133]
[1737981047071,0.10547992,99130.0,99129.0,0.00415133]
[1737981047279,0.10547992,99130.0,99129.0,0.00315133]
[1737981047581,0.3608,99134.0,99129.0,0.00415133]
[1737981047782,0.10547992,99130.0,99129.0,0.00415133]
[1737981048082,0.11544445,99133.0,99129.0,0.00415133]
[1737981048281,0.3608,99134.0,99129.0,0.00415133]
[1737981048477,0.11544445,99130.0,99129.0,0.00415133]
[1737981048781,0.3608,99134.0,99129.0,0.00415133]
[1737981048981,0.20184,99133.0,99129.0,0.00415133]
[1737981049278,0.11109311,99130.0,99129.0,0.00415133]
[1737981049484,0.201844,99131.0,99129.0,0.00415133]
[1737981049777,0.31293811,99130.0,99129.0,0.00515133]
[1737981050279,0.201845,99130.0,99129.0,0.00515133]
[1737981050481,0.31881215,99130.0,99129.0,0.00515133]
[1737981051984,0.34907544,99130.0,99129.0,0.00515133]
[1737981054385,0.14723044,99130.0,99129.0,0.00515133]
[1737981059581,0.34907544,99130.0,99129.0,0.00515133]
[1737981060289,0.14723044,99130.0,99129.0,0.00515133]
[1737981061079,0.14723044,99130.0,99129.0,0.00415133]
[1737981061284,0.14923044,99130.0,99129.0,0.00415133]
[1737981061882,0.14723044,99130.0,99129.0,0.00415133]
[1737981062077,0.14923044,99130.0,99129.0,0.00415133]
[1737981062483,0.14923044,99130.0,99129.0,0.36495133]
[1737981062686,0.00015133,99148.0,99129.0,0.66495133]
[1737981062878,0.48196,99172.0,99147.0,0.3608]
[1737981063081,0.48196,99172.0,99157.0,0.3608]
[1737981063394,0.09758145,99170.0,99157.0,0.3608]
[1737981063893,0.11100221,99169.0,99148.0,0.5137]
[1737981064088,0.31276821,99169.0,99154.0,0.00015133]
[1737981064280,0.3608,99164.0,99154.0,0.00015133]
[1737981064679,0.10562871,99163.0,99154.0,0.00015133]
[1737981065293,0.30740771,99163.0,99154.0,0.00015133]
[1737981065694,0.3608,99155.0,99154.0,0.00015133]
[1737981066295,0.47488471,99155.0,99154.0,0.00015133]
[1737981067293,0.47888471,99155.0,99154.0,0.00015133]
[1737981068196,0.64768471,99155.0,99154.0,0.00015133]
[1737981069791,0.64668471,99155.0,99154.0,0.00015133]
[1737981070494,0.64768471,99155.0,99154.0,0.00015133]
[1737981071196,0.64668471,99155.0,99154.0,0.00015133]
[1737981071795,0.11708471,99155.0,99154.0,0.00015133]
[1737981072001,0.003,99155.0,99154.0,0.36095133]
[1737981072298,0.12104,99191.0,99165.0,0.201772]
[1737981072498,0.12104,99191.0,99172.0,0.3608]
[1737981072800,0.29930645,99190.0,99172.0,0.3608]
[1737981073003,0.562525,99189.0,99172.0,0.3608]
[1737981073190,0.3608,99189.0,99172.0,0.3608]
[1737981073591,0.00115133,99173.0,99172.0,0.3608]
[1737981074495,0.00115133,99173.0,99172.0,0.37328625]
[1737981074894,0.00115133,99173.0,99172.0,0.01248625]
[1737981075093,0.00115133,99173.0,99166.0,0.4724]
[1737981075500,0.4770668,99172.0,99166.0,0.30057927]
[1737981075895,0.1162668,99172.0,99166.0,0.30057927]
[1737981077794,0.3608,99170.0,99166.0,0.01197927]
[1737981078097,0.20177,99168.0,99158.0,0.3608]
[1737981078297,0.1165258,99169.0,99158.0,0.3608]
[1737981078600,0.1165258,99167.0,99158.0,0.3608]
[1737981078802,0.1165258,99169.0,99158.0,0.3608]
[1737981078998,0.45890146,99170.0,99158.0,0.3608]
[1737981079202,0.3608,99170.0,99158.0,0.3608]
[1737981079406,0.11644433,99169.0,99158.0,0.3608]
[1737981079605,0.201768,99168.0,99158.0,0.3608]
[1737981079803,0.11644433,99169.0,99158.0,0.3608]
[1737981080000,0.10562658,99167.0,99158.0,0.3608]
[1737981080197,0.10562658,99169.0,99158.0,0.3608]
[1737981080398,0.10562658,99169.0,99158.0,0.37273565]
[1737981080706,0.45890146,99170.0,99158.0,0.37273565]
[1737981080899,0.002,99168.0,99158.0,0.37273565]
[1737981081295,0.11444592,99167.0,99158.0,0.01193565]
[1737981081496,0.3608,99161.0,99154.0,0.00015133]
[1737981081701,0.3608,99157.0,99154.0,0.0123224]
[1737981081905,0.3608,99157.0,99154.0,0.00015133]
[1737981082104,0.10689838,99156.0,99154.0,0.00015133]
[1737981084013,0.10989838,99156.0,99154.0,0.01178385]
[1737981084216,0.10989838,99156.0,99154.0,0.00015133]
[1737981086212,0.003,99156.0,99154.0,0.00015133]
[1737981086410,0.3608,99157.0,99154.0,0.00015133]
[1737981086712,0.003,99156.0,99155.0,1.5]
[1737981087219,0.3608,99174.0,99155.0,1.6439]
[1737981087408,0.3608,99174.0,99166.0,0.3608]
[1737981087608,0.3608,99174.0,99167.0,0.1464]
[1737981087803,0.09758145,99180.0,99167.0,0.1464]
[1737981088309,0.3608,99186.0,99167.0,0.1464]
[1737981088504,0.201736,99184.0,99167.0,0.1464]
[1737981088811,0.09758145,99180.0,99167.0,0.1464]
[1737981089221,0.09758145,99180.0,99167.0,0.15799827]
[1737981089718,0.2211,99169.0,99167.0,0.15799827]
[1737981089918,0.31643346,99168.0,99167.0,0.01159827]
[1737981090217,0.25676546,99168.0,99154.0,0.00015133]
[1737981090408,0.201782,99161.0,99154.0,0.00015133]
[1737981090712,0.3608,99162.0,99154.0,0.01198747]
[1737981090911,0.10963741,99160.0,99154.0,0.00015133]
[1737981091116,0.201794,99155.0,99154.0,0.00015133]
[1737981091416,0.30801256,99155.0,99154.0,0.00015133]